bitfinex/quotes_ETHUSD_20210701
["timestamp","ask_amount","ask_price","bid_price","bid_amount"]
[1625144666990,7.06859,2121.0,2120.3,2.51806715]
[1625144666993,3.5346215,2121.1,2120.3,2.51806715]
[1625144667093,10.5461,2121.2,2120.3,2.51806715]
[1625144667795,10.5461,2121.2,2120.3,17.51806715]
[1625144667899,24.696826,2121.8,2120.3,17.51806715]
[1625144668048,10.6028,2121.8,2120.4,0.1056233]
[1625144668199,10.6028,2121.8,2120.7,4.0]
[1625144668297,10.6028,2121.8,2120.8,15.0]
[1625144668545,10.6028,2121.8,2120.9,0.12]
[1625144669222,10.6028,2121.8,2121.0,4.0]
[1625144669524,10.3357,2121.9,2121.0,4.0]
[1625144669981,19.75787,2121.9,2121.0,4.0]
[1625144670680,24.75787,2121.9,2121.0,4.0]
[1625144670783,17.5353,2121.9,2120.3,0.00750113]
[1625144670982,17.5353,2121.9,2120.2,9.45589033]
[1625144670983,11.53792,2121.1,2120.2,9.45589033]
[1625144671571,4.4692,2121.1,2120.3,0.06]
[1625144672071,0.9975,2121.3,2120.7,7.06651]
[1625144672221,17.71005,2121.7,2120.8,48.59341664]
[1625144672372,17.71005,2121.7,2120.8,48.79341664]
[1625144672474,23.2931784,2121.9,2120.9,15.0]
[1625144672475,10.3357,2121.9,2120.9,15.0]
[1625144672671,10.3357,2121.9,2121.0,0.2]
[1625144673072,10.3357,2121.9,2121.1,2.63868536]
[1625144673173,10.3357,2121.9,2121.4,7.06448]
[1625144675569,9.3357,2121.9,2121.4,7.06448]
[1625144675670,10.2471,2122.2,2121.4,7.06448]
[1625144675771,7.06474,2122.3,2121.4,7.06448]
[1625144676076,7.06474,2122.3,2121.4,7.10448]
[1625144677378,20.9021,2122.4,2121.4,0.04]
[1625144678341,20.9021,2122.4,2121.1,2.49868536]
[1625144678545,20.9021,2122.4,2121.2,9.41931]
[1625144678643,24.4347694,2122.4,2121.2,9.41931]
[1625144678946,24.4347694,2122.4,2121.1,2.49868536]
[1625144679595,7.06542,2122.1,2121.1,9.56399536]
[1625144679745,7.06542,2122.1,2121.2,0.04]
[1625144680671,7.06542,2122.1,2121.2,2.53868536]
[1625144681167,7.06481,2122.3,2121.3,0.04]
[1625144681514,7.06481,2122.3,2121.2,2.49868536]
[1625144681867,7.06481,2122.3,2120.9,4.0]
[1625144681968,10.98811,2122.3,2120.9,4.0]
[1625144682217,10.98811,2122.3,2120.4,5.71498536]
[1625144682317,11.09116145,2122.3,2120.4,5.71498536]
[1625144682618,17.93811,2122.3,2120.4,5.71498536]
[1625144682912,7.06703,2121.6,2120.7,7.06676]
[1625144683610,7.06703,2121.6,2120.5,9.48253]
[1625144683860,7.06703,2121.6,2120.5,9.42253]
[1625144684112,7.06703,2121.6,2120.6,0.06]
[1625144685755,7.06703,2121.6,2120.6,0.09424134]
[1625144685904,7.06703,2121.6,2120.6,2.5929267]
[1625144686004,7.06703,2121.6,2120.7,0.04]
[1625144686558,7.06703,2121.6,2120.7,7.10705]
[1625144687895,7.06703,2121.6,2120.7,7.06705]
[1625144689893,7.06703,2121.6,2120.6,2.5329267]
[1625144690094,3.53384,2121.5,2120.6,0.03424134]
[1625144690200,4.86044,2121.5,2120.6,0.03424134]
[1625144690346,1.3266,2121.5,2120.6,0.03424134]
[1625144690644,1.43390491,2121.5,2120.6,0.03424134]
[1625144690893,4.96847491,2121.5,2120.6,0.03424134]
[1625144690996,7.06827,2121.1,2120.6,0.03424134]
[1625144691096,11.49677,2121.1,2120.6,0.03424134]
[1625144692052,3.5350578,2121.0,2120.6,0.03424134]
[1625144693208,7.07036,2120.8,2120.6,0.03424134]
[1625144694198,7.05924522,2120.8,2120.6,0.03424134]
[1625144703161,3.5350578,2121.0,2120.6,0.03424134]
[1625144703312,9.42436,2121.3,2120.6,0.03424134]
[1625144703568,21.5873,2121.4,2120.6,0.03424134]
[1625144703663,21.5873,2121.4,2120.6,2.5329267]
[1625144703762,11.0065,2121.4,2120.6,2.5329267]
[1625144703961,10.5419,2121.5,2120.7,0.08]
[1625144704064,14.1591374,2121.7,2120.7,0.08]
[1625144704214,17.69198,2121.7,2121.0,7.0662]
[1625144704464,10.7311,2121.8,2121.7,0.02406189]
[1625144705113,25.6030767,2122.0,2121.7,0.02406189]
[1625144705322,13.8212967,2122.0,2121.7,0.02406189]
[1625144705421,3.5330967,2122.0,2121.7,0.02406189]
[1625144706122,3.52132049,2122.0,2121.7,0.02406189]
[1625144706873,10.0222,2122.2,2121.7,0.02406189]
[1625144707023,17.08717,2122.2,2121.7,0.02406189]
[1625144707372,17.08717,2122.2,2121.2,0.02406189]
[1625144707657,17.08717,2122.2,2121.2,0.18406189]
[1625144707755,17.08717,2122.2,2121.2,2.68274725]
[1625144707862,10.0222,2122.2,2121.2,2.68274725]
[1625144708061,10.0222,2122.2,2121.4,7.06473]
[1625144708160,10.0898,2122.4,2121.4,7.06473]
[1625144708510,10.0898,2122.4,2121.4,9.56341536]
[1625144709112,17.1543,2122.4,2121.4,9.56341536]
[1625144709365,10.0898,2122.4,2121.4,9.56341536]
[1625144709465,0.02159978,2121.9,2121.5,0.1]
[1625144709710,0.04319955,2121.9,2121.5,0.1]
[1625144709813,0.02159977,2121.9,2121.6,2.49868536]
[1625144710014,0.02159977,2121.9,2121.7,0.2]
[1625144710261,0.02159977,2121.9,2121.8,2.61868536]
[1625144713375,9.977e-05,2121.9,2121.8,2.61868536]
[1625144714133,9.977e-05,2121.9,2121.8,17.61868536]
[1625144714234,0.52006648,2123.2,2121.9,0.09362941]
[1625144714375,0.52006648,2123.2,2122.3,4.85427962]
[1625144714474,0.52006648,2123.2,2122.4,15.15]
[1625144714568,0.52006648,2123.2,2122.4,15.35]
[1625144714663,0.52006648,2123.2,2122.4,18.13530875]
[1625144714818,10.1107,2123.7,2122.4,18.13530875]
[1625144714921,3.5300104,2124.3,2122.4,18.13530875]
[1625144715070,41.527,2124.4,2122.5,0.50850256]
[1625144715166,31.3174,2124.4,2122.5,4.50850256]
[1625144715318,31.3174,2124.4,2122.6,17.93530875]
[1625144715414,31.3174,2124.4,2123.3,7.05815]
[1625144715565,20.2477,2124.4,2123.3,26.26605]
[1625144715666,10.1355,2124.4,2123.3,26.26605]
[1625144715764,10.1355,2124.4,2123.4,2.78530875]
[1625144715913,10.1355,2124.4,2123.4,2.98530875]
[1625144716633,10.1355,2124.4,2123.8,7.05634]
[1625144716726,10.1355,2124.4,2123.4,3.02236965]
[1625144716877,10.1355,2124.4,2123.4,0.0370609]
[1625144717629,17.0855,2124.4,2123.4,0.0370609]
[1625144719075,17.0855,2124.4,2123.4,2.4950589]
[1625144719677,17.0855,2124.4,2123.4,37.98104952]
[1625144719873,17.0855,2124.4,2123.5,0.1]
[1625144720175,10.1355,2124.4,2123.5,0.1]
[1625144720979,10.1355,2124.4,2123.7,7.05711]
[1625144721968,10.1355,2124.4,2123.8,0.03694701]
[1625144723225,10.1355,2124.4,2123.9,0.06]
[1625144723548,10.1355,2124.4,2123.8,0.03694701]
[1625144723648,13.8956,2124.4,2123.8,0.03694701]
[1625144725960,0.9761,2124.5,2124.0,7.05592]
[1625144726063,10.8642,2124.7,2124.0,22.05592]
[1625144726163,10.8642,2124.7,2124.1,0.2]
[1625144726321,10.8642,2124.7,2124.2,0.16]
[1625144726520,10.8642,2124.7,2124.1,2.457998]
[1625144726618,10.8642,2124.7,2124.3,2.457998]
[1625144726716,0.02228031,2124.8,2124.3,2.457998]
[1625144727017,0.02228031,2124.8,2124.4,0.18]
[1625144728003,0.02228031,2124.8,2124.3,0.03668206]
[1625144728157,3.37148031,2124.8,2124.3,0.03668206]
[1625144729759,3.52148031,2124.8,2124.3,0.03668206]
[1625144729861,3.52148031,2124.8,2123.1,4.0]
[1625144729968,7.05886,2124.4,2123.1,4.0]
[1625144730158,7.05886,2124.4,2122.9,11.06520768]
[1625144730710,7.05886,2124.4,2122.9,4.00634768]
[1625144730869,0.15,2124.3,2122.9,4.0]
[1625144731014,7.06056,2123.9,2122.9,4.0]
[1625144731561,7.1704515,2123.9,2122.9,4.0]
[1625144731715,7.17395991,2123.9,2122.9,4.0]
[1625144732216,7.17395991,2123.9,2122.1,4.0]
[1625144732413,7.06178,2123.5,2122.2,7.06136]
[1625144732512,10.74088,2123.5,2122.2,7.06136]
[1625144732609,10.74088,2123.5,2122.3,0.12]
[1625144732809,10.74088,2123.5,2122.3,0.15421226]
[1625144733113,10.74088,2123.5,2122.5,4.0]
[1625144734163,10.74088,2123.5,2122.4,11.10108]
[1625144734516,3.6791,2123.5,2122.4,11.10108]
[1625144734671,3.6791,2123.5,2122.5,0.2]
[1625144734972,10.31051286,2123.9,2122.5,0.2]
[1625144735072,10.31051286,2123.9,2122.6,2.457998]
[1625144735174,10.31051286,2123.9,2122.7,15.0]
[1625144735274,10.3018,2123.9,2122.7,15.1]
[1625144735374,14.8333,2123.9,2122.7,0.1]
[1625144737169,14.8333,2123.9,2122.8,9.41226]
[1625144737369,14.8333,2123.9,2122.7,4.0]
[1625144738070,14.8333,2123.9,2122.7,4.03420557]
[1625144738166,14.8333,2123.9,2122.7,0.03420557]
[1625144739069,0.15,2123.8,2122.7,0.03420557]
[1625144739210,7.06137,2123.5,2122.7,0.03420557]
[1625144741217,2.7452,2123.6,2122.8,0.04]
[1625144741508,2.7452,2123.6,2122.7,0.03420557]
[1625144742645,2.7452,2123.6,2122.8,7.06015]
[1625144742744,2.7452,2123.6,2122.7,0.03420557]
[1625144742994,2.7452,2123.6,2122.8,0.08]
[1625144743096,1.2983,2123.6,2122.8,0.08]
[1625144743203,4.5315,2123.9,2122.7,2.49220357]
[1625144743309,33.452,2124.0,2122.7,2.49220357]
[1625144743411,33.452,2124.0,2122.8,15.0]
[1625144743412,32.2916,2124.0,2122.8,15.0]
[1625144743508,21.438,2124.0,2122.9,2.457998]
[1625144743608,21.438,2124.0,2123.0,15.0]
[1625144743744,21.438,2124.0,2123.4,7.05809]
[1625144743838,10.9587,2124.0,2123.4,7.05809]
[1625144744193,10.9587,2124.0,2123.1,11.869228]
[1625144744392,10.9587,2124.0,2123.1,9.41123]
[1625144744693,10.9587,2124.0,2123.2,0.06]
[1625144745291,10.9587,2124.0,2123.0,7.52901]
[1625144745493,10.9587,2124.0,2123.0,4.0]
[1625144745648,11.1087,2124.0,2123.0,4.0]
[1625144746078,18.16814,2124.0,2123.0,4.0]
[1625144746176,18.16814,2124.0,2122.7,0.03420557]
[1625144747780,18.16814,2124.0,2122.7,2.49220357]
[1625144747936,18.01814,2124.0,2122.8,0.1]
[1625144748233,18.01814,2124.0,2122.9,2.457998]
[1625144748485,18.01814,2124.0,2123.0,0.2]
[1625144748734,10.9587,2124.0,2123.1,2.657998]
[1625144748839,10.9587,2124.0,2123.1,17.657998]
[1625144749383,10.9587,2124.0,2123.2,0.14]
[1625144749533,10.9587,2124.0,2123.3,3.52843]
[1625144749684,10.9587,2124.0,2123.3,18.52843]
[1625144749787,10.9587,2124.0,2123.6,7.05693]
[1625144750033,10.9587,2124.0,2123.7,0.12]
[1625144750231,10.9587,2124.0,2123.4,9.40964]
[1625144751259,10.84097304,2124.0,2123.4,9.40964]
[1625144752215,10.84097304,2124.0,2123.2,2.457998]
[1625144753324,17.89951304,2124.0,2123.2,2.457998]
[1625144754676,17.89951304,2124.0,2123.2,9.516228]
[1625144754986,17.89951304,2124.0,2123.2,2.457998]
[1625144756080,17.89951304,2124.0,2123.3,0.08]
[1625144758255,17.89951304,2124.0,2123.2,2.457998]
[1625144758760,34.62163,2124.4,2123.3,15.0]
[1625144758913,10.0647,2124.7,2123.3,15.0]
[1625144759008,10.0647,2124.7,2123.4,0.06808329]
[1625144759113,0.02228031,2124.8,2123.4,2.72608129]
[1625144759261,0.02228031,2124.8,2123.6,0.07835126]
[1625144759411,0.02228031,2124.8,2123.8,9.4940793]
[1625144759524,0.02228031,2124.8,2123.9,15.0]
[1625144759820,0.02228031,2124.8,2123.9,17.457998]
[1625144760021,0.02228031,2124.8,2124.0,0.2]
[1625144760121,0.02228031,2124.8,2124.2,4.0]
[1625144760222,0.02228031,2124.8,2124.3,7.0545]
[1625144760322,0.02228031,2124.8,2124.2,4.0]
[1625144760526,0.02228031,2124.8,2124.3,0.16]
[1625144761123,0.02228031,2124.8,2124.2,4.0]
[1625144761225,4.05848031,2124.8,2124.0,2.457998]
[1625144761321,4.05848031,2124.8,2123.8,9.40727]
[1625144761576,11.11425031,2124.8,2123.6,11.06571943]
[1625144761815,11.11425031,2124.8,2123.6,4.00884943]
[1625144762067,0.15,2124.7,2123.7,2.0]
[1625144762212,0.15,2124.7,2123.8,2.0]
[1625144762665,0.15,2124.7,2123.6,0.00884943]
[1625144763064,3.52918,2124.6,2123.6,0.00884943]
[1625144763169,7.05829,2124.1,2123.6,0.00884943]
[1625144763264,10.34699,2124.1,2123.6,0.00884943]
[1625144764713,10.34699,2124.1,2123.6,0.04304159]
[1625144764714,10.49699,2124.1,2123.6,0.04304159]
[1625144766011,3.53007,2124.0,2123.6,0.04304159]
[1625144766262,7.21042,2123.9,2123.6,0.04304159]
[1625144766409,7.21042,2123.9,2123.6,0.03419216]
[1625144774720,7.06042,2123.9,2123.6,0.03419216]
[1625144777752,24.42359,2124.4,2123.6,0.03419216]
[1625144777899,14.15579,2124.4,2123.7,0.12]
[1625144778351,14.15579,2124.4,2123.6,0.03419216]
[1625144778454,7.05767,2124.1,2123.6,0.03419216]
[1625144778958,10.6268,2124.4,2123.6,0.03419216]
[1625144779059,10.2708,2124.5,2123.6,3.62279016]
[1625144779159,11.76378,2125.0,2123.7,15.2]
[1625144779256,10.1214,2125.1,2123.7,15.2]
[1625144779354,10.1214,2125.1,2123.8,0.15]
[1625144779457,10.1214,2125.1,2123.8,2.75389621]
[1625144779561,10.1214,2125.1,2123.9,15.2]
[1625144779659,10.1214,2125.1,2124.3,7.05413]
[1625144779810,10.6823,2125.2,2124.3,11.13033]
[1625144780158,10.6823,2125.2,2124.4,2.60389621]
[1625144780605,10.6823,2125.2,2124.5,0.2]
[1625144781007,10.6823,2125.2,2124.6,2.60389621]
[1625144781206,17.7364,2125.2,2124.6,2.60389621]
[1625144781307,10.6823,2125.2,2124.6,2.60389621]
[1625144782179,10.9975,2125.8,2124.6,2.60389621]
[1625144782281,7.05356,2125.4,2124.6,17.60389621]
[1625144782430,11.75895,2125.9,2124.7,0.2]
[1625144782632,11.75895,2125.9,2124.8,0.2]
[1625144782781,11.75895,2125.9,2124.8,2.80389621]
[1625144782881,11.75895,2125.9,2124.9,15.0]
[1625144782978,11.75895,2125.9,2124.8,2.80389621]
[1625144783133,11.75895,2125.9,2124.9,0.18]
[1625144783229,11.75895,2125.9,2125.0,2.60389621]
[1625144783481,7.05226,2125.8,2125.0,9.65555621]
[1625144783733,11.75895,2125.9,2125.0,2.60389621]
[1625144783981,11.75895,2125.9,2124.9,0.18]
[1625144784500,11.75895,2125.9,2124.7,9.40265]
[1625144785003,20.80778,2125.6,2124.2,2.61028623]
[1625144785903,3.52752,2125.5,2124.2,2.61028623]
[1625144786050,7.05521,2124.9,2124.2,2.61028623]
[1625144786251,12.93447,2125.5,2124.2,2.61028623]
[1625144786351,12.93447,2125.5,2124.3,0.2]
[1625144787193,7.05443,2125.1,2124.3,0.2]
[1625144787287,11.09923,2125.1,2124.3,0.2]
[1625144787487,11.09923,2125.1,2124.4,0.14]
[1625144788294,11.09923,2125.1,2124.4,2.74389621]
[1625144788392,4.0448,2125.1,2124.4,2.74389621]
[1625144788493,1.1855,2125.2,2124.4,2.74389621]
[1625144788593,12.93447,2125.5,2124.4,17.74389621]
[1625144788696,12.93447,2125.5,2124.5,0.2]
[1625144789033,12.93447,2125.5,2124.6,2.60389621]
[1625144789288,7.05413,2125.2,2124.6,2.60389621]
[1625144789384,11.32703,2125.2,2124.6,2.60389621]
[1625144789584,11.22703,2125.2,2124.6,2.60389621]
[1625144789684,11.22703,2125.2,2124.7,0.06]
[1625144790384,11.22703,2125.2,2124.7,0.09519745]
[1625144790584,11.22703,2125.2,2124.8,0.14]
[1625144790786,4.2729,2125.2,2124.8,0.14]
[1625144790886,7.05352,2125.4,2124.8,0.14]
[1625144791233,7.05352,2125.4,2124.8,2.74389621]
[1625144791333,7.05352,2125.4,2124.8,2.60389621]
[1625144791889,7.00352,2125.4,2124.8,2.60389621]
[1625144792390,10.0343,2125.6,2124.8,24.65592621]
[1625144792493,22.40051,2126.2,2124.8,24.65592621]
[1625144792494,10.643,2126.2,2124.9,0.2]
[1625144792747,10.643,2126.2,2125.0,0.25134158]
[1625144792844,53.98958,2126.7,2125.1,0.15]
[1625144792992,53.98958,2126.7,2125.2,0.05599082]
[1625144793090,42.2348,2126.7,2125.2,0.05599082]
[1625144793197,42.2348,2126.7,2125.2,2.65988703]
[1625144793332,42.2348,2126.7,2125.4,0.03832771]
[1625144793585,42.2348,2126.7,2125.9,7.04887]
[1625144793682,21.1591,2126.7,2125.9,7.04887]
[1625144793782,21.1591,2126.7,2126.0,0.18]
[1625144793884,10.8612,2126.7,2126.0,0.18]
[1625144793987,7.04887,2127.0,2126.0,0.18]
[1625144794091,22.19500597,2128.8,2126.0,0.18956169]
[1625144794092,31.3362,2127.7,2126.0,0.18956169]
[1625144794240,21.9158,2127.7,2126.1,0.21995037]
[1625144794386,21.9158,2127.7,2126.2,0.2]
[1625144794487,21.9158,2127.7,2126.3,0.09277748]
[1625144794639,21.90469293,2127.7,2126.8,7.04566]
[1625144794787,10.9053,2127.9,2126.9,18.692]
[1625144794888,10.9053,2127.9,2127.0,0.2]
[1625144795086,10.9053,2127.9,2127.0,2.80389621]
[1625144795191,10.719587,2128.2,2127.0,17.80389621]
[1625144795436,10.719587,2128.2,2127.0,2.81057463]
[1625144795590,10.719587,2128.2,2127.1,0.08]
[1625144796183,17.764777,2128.2,2127.1,0.08]
[1625144796441,17.764777,2128.2,2127.0,0.03413659]
[1625144796687,0.15,2128.1,2127.0,0.03413659]
[1625144797388,7.45774596,2128.1,2125.8,0.05652111]
[1625144797487,7.04882,2127.1,2125.9,7.04827]
[1625144797587,7.04882,2127.1,2125.9,22.04827]
[1625144797746,7.04882,2127.1,2126.0,0.04]
[1625144797851,20.33537,2127.7,2126.0,0.04]
[1625144798047,20.33537,2127.7,2126.1,0.2]
[1625144798150,20.33537,2127.7,2126.1,2.46996788]
[1625144798251,10.9372,2127.7,2126.2,15.0]
[1625144798397,10.9372,2127.7,2126.3,0.2]
[1625144798495,10.9372,2127.7,2126.3,2.46996788]
[1625144798648,10.9372,2127.7,2126.4,15.2]
[1625144798746,10.9372,2127.7,2126.6,7.04611]
[1625144798846,10.9372,2127.7,2126.7,15.0]
[1625144799249,10.9372,2127.7,2126.8,0.04]
[1625144800177,10.9372,2127.7,2126.9,7.04504]
[1625144800328,10.9372,2127.7,2127.0,15.0]
[1625144801532,10.9372,2127.7,2127.1,0.06]
[1625144803882,10.9372,2127.7,2126.4,15.0]
[1625144804033,15.8978,2127.7,2126.4,15.0]
[1625144804377,15.8978,2127.7,2126.2,9.54549]
[1625144804630,15.8978,2127.7,2126.3,0.1]
[1625144804835,15.8978,2127.7,2126.3,15.1]
[1625144805033,15.8978,2127.7,2126.4,2.26996788]
[1625144805835,15.8978,2127.7,2126.4,17.26996788]
[1625144805935,15.8978,2127.7,2126.5,15.0]
[1625144806034,15.8978,2127.7,2126.5,15.08]
[1625144806134,15.8978,2127.7,2126.5,22.12675]
[1625144807493,15.8978,2127.7,2126.5,7.12675]
[1625144807944,15.8978,2127.7,2126.5,7.04675]
[1625144808597,15.8978,2127.7,2126.5,22.04675]
[1625144809142,15.8978,2127.7,2126.5,24.31671788]
[1625144809387,15.8978,2127.7,2126.6,0.14]
[1625144809990,22.94444,2127.7,2126.6,9.53435]
[1625144810088,22.94444,2127.7,2126.7,15.0]
[1625144814725,22.94444,2127.7,2126.7,22.04625]
[1625144815125,22.94444,2127.7,2126.7,24.31621788]
[1625144815895,22.94444,2127.7,2126.8,0.04]
[1625144816668,22.94444,2127.7,2126.8,7.08593]
[1625144816775,15.8978,2127.7,2126.8,7.08593]
[1625144816968,15.8978,2127.7,2126.9,0.04]
[1625144818862,15.8978,2127.7,2126.7,17.26996788]
[1625144819310,15.8978,2127.7,2126.7,2.26996788]
[1625144819711,15.8978,2127.7,2126.7,17.26996788]
[1625144820166,15.8978,2127.7,2126.9,7.04579]
[1625144820311,15.8978,2127.7,2127.0,0.08]
[1625144820866,15.8978,2127.7,2126.9,7.04579]
[1625144821068,15.8978,2127.7,2126.7,2.26996788]
[1625144821867,15.8978,2127.7,2126.7,17.26996788]
[1625144821967,15.8978,2127.7,2126.7,2.26996788]
[1625144822167,22.94422,2127.7,2126.7,9.31646788]
[1625144822572,22.94422,2127.7,2126.7,24.31646788]
[1625144822788,22.94422,2127.7,2126.8,0.08]
[1625144823638,22.94422,2127.7,2127.0,7.04582]
[1625144823939,15.8978,2127.7,2127.0,7.04582]
[1625144824188,15.8978,2127.7,2127.1,0.1]
[1625144824493,15.8978,2127.7,2127.2,0.04]
[1625144824924,15.8978,2127.7,2127.1,7.04567]
[1625144827070,15.8978,2127.7,2126.9,9.39425]
[1625144827867,15.8978,2127.7,2126.8,3.52275]
[1625144827973,15.8978,2127.7,2126.5,9.42594]
[1625144827974,3.52358,2127.6,2126.5,9.42594]
[1625144828068,15.8978,2127.7,2126.5,9.42594]
[1625144828220,0.11917217,2127.6,2127.5,0.03]
[1625144828367,0.15,2127.6,2127.5,0.03]
[1625144828470,0.15,2127.6,2126.2,9.39549]
[1625144828570,0.26261487,2127.6,2126.2,9.39549]
[1625144829069,3.52399,2127.5,2126.2,24.39549]
[1625144829269,3.67399,2127.5,2126.3,0.08]
[1625144829621,3.67399,2127.5,2126.4,0.2]
[1625144829718,3.67399,2127.5,2126.4,15.2]
[1625144829921,3.67399,2127.5,2126.4,0.2]
[1625144830119,3.62399,2127.5,2126.4,0.2]
[1625144830271,3.62399,2127.5,2126.3,11.67231845]
[1625144831370,7.04787,2127.0,2126.3,11.67231845]
[1625144831708,7.0533,2127.1,2125.5,6.97490845]
[1625144831863,7.0533,2127.1,2125.5,4.69893]
[1625144831965,0.13648089,2127.0,2125.5,4.69893]
[1625144832063,3.52466,2126.9,2125.5,4.69893]
[1625144832211,3.52466,2126.9,2125.6,0.04]
[1625144832411,3.52466,2126.9,2125.7,0.1]
[1625144833164,7.04999,2126.4,2125.7,9.49864]
[1625144833262,10.95379,2126.4,2125.7,9.49864]
[1625144833948,10.90379,2126.4,2125.7,9.49864]
[1625144834007,10.90379,2126.4,2125.7,0.1]
[1625144834262,10.90379,2126.4,2125.5,11.74912]
[1625144834456,10.90379,2126.4,2125.5,7.05019]
[1625144834610,10.90379,2126.4,2125.1,15.2726]
[1625144834709,10.90379,2126.4,2125.1,3.52533]
[1625144835311,14.43692846,2126.4,2124.7,2.27597845]
[1625144835410,0.1803846,2126.3,2124.7,2.27597845]
[1625144835912,0.15,2126.2,2124.7,2.27597845]
[1625144836758,0.15,2126.2,2124.3,31.9909]
[1625144836759,7.05334,2125.5,2124.3,31.9909]
[1625144836858,7.05334,2125.5,2124.3,21.3358]
[1625144837007,11.97614,2125.5,2124.2,11.75154]
[1625144837105,12.07865671,2125.5,2124.2,11.75154]
[1625144837205,11.97614,2125.5,2124.2,11.75154]
[1625144837305,11.97614,2125.5,2124.2,26.75154]
[1625144837756,11.97614,2125.5,2124.4,0.12]
[1625144837954,11.97614,2125.5,2124.5,0.12]
[1625144838207,11.97614,2125.5,2124.5,7.05321]
[1625144838360,19.60799,2125.8,2124.5,22.05321]
[1625144838478,10.2041,2125.8,2124.5,22.05321]
[1625144838567,20.9986,2126.0,2124.6,2.44264512]
[1625144838665,20.9986,2126.0,2124.7,15.0]
[1625144838815,20.9986,2126.0,2124.8,0.16]
[1625144839167,20.9986,2126.0,2124.9,0.16]
[1625144840168,20.9986,2126.0,2125.1,7.051]
[1625144840268,20.9986,2126.0,2125.1,22.051]
[1625144840381,20.9986,2126.0,2125.2,0.12]
[1625144840567,20.9986,2126.0,2125.3,0.1]
[1625144841560,20.9986,2126.0,2125.3,0.13486342]
[1625144842162,20.9986,2126.0,2125.3,0.03486342]
[1625144842262,10.5435,2126.0,2125.3,15.03486342]
[1625144843409,10.5435,2126.0,2125.3,22.08554342]
[1625144843612,10.5435,2126.0,2125.4,0.16]
[1625144844612,7.75203776,2126.0,2125.4,0.16]
[1625144844761,7.75203776,2126.0,2125.3,17.27750854]
[1625144845202,7.75203776,2126.0,2125.6,7.04963]
[1625144845308,10.4145,2126.2,2125.6,22.04963]
[1625144845504,10.4145,2126.2,2125.7,0.08]
[1625144845612,21.2765,2126.8,2125.7,0.08]
[1625144845708,21.2765,2126.8,2125.7,4.5967]
[1625144845804,21.2765,2126.8,2125.8,15.0]
[1625144846455,17.85904,2126.8,2126.0,7.0483]
[1625144846676,10.8102,2126.8,2126.1,15.1]
[1625144846925,10.0055,2126.9,2126.1,15.1]
[1625144847227,10.0055,2126.9,2126.1,0.1]
[1625144847326,10.0055,2126.9,2126.0,7.0483]
[1625144847549,10.0055,2126.9,2126.0,22.0483]
[1625144847650,17.054,2126.9,2126.0,22.0483]
[1625144848153,17.054,2126.9,2126.0,7.0483]
[1625144848254,17.054,2126.9,2125.8,2.2771197]
[1625144848406,17.054,2126.9,2125.9,2.0]
[1625144848407,20.6422,2126.9,2125.9,2.0]
[1625144849253,20.6422,2126.9,2126.0,0.06]
[1625144849456,20.6422,2126.9,2125.9,2.0]
[1625144849770,20.6422,2126.9,2125.9,17.0]
[1625144850017,20.6422,2126.9,2125.9,2.0]
[1625144850571,20.6422,2126.9,2126.0,15.0]
[1625144850723,20.6422,2126.9,2126.1,0.04]
[1625144851626,10.0055,2126.9,2126.1,0.04]
[1625144851725,10.0055,2126.9,2126.1,7.088]
[1625144852070,10.0055,2126.9,2126.2,0.04]
[1625144852171,10.0055,2126.9,2125.8,52.31798177]
[1625144852321,10.0055,2126.9,2125.9,2.0]
[1625144852569,10.0055,2126.9,2126.3,0.0343188]
[1625144852870,17.05387,2126.9,2126.3,0.0343188]
[1625144855875,10.0055,2126.9,2126.3,0.0343188]
[1625144857681,17.05387,2126.9,2126.3,0.0343188]
[1625144859768,10.0055,2126.9,2126.3,0.0343188]
[1625144861373,17.05387,2126.9,2126.3,0.0343188]
[1625144866144,17.05387,2126.9,2126.4,0.06]
[1625144866345,17.05387,2126.9,2126.3,0.0343188]
[1625144869791,7.04837,2126.9,2126.3,0.0343188]
[1625144869994,7.04837,2126.9,2126.4,0.06]
[1625144870102,3.52394,2127.1,2126.4,15.06]
[1625144870207,17.09155,2127.2,2126.4,26.68632]
[1625144870409,10.0448,2127.2,2126.5,0.2]
[1625144870803,11.74901,2127.7,2126.6,2.29027509]
[1625144870906,11.74901,2127.7,2126.7,15.0]
[1625144871002,21.0037,2127.9,2126.7,15.0]
[1625144871106,21.0037,2127.9,2126.8,0.0252299]
[1625144871204,21.0037,2127.9,2126.8,2.49027509]
[1625144871305,21.0037,2127.9,2127.3,7.04433]
[1625144871405,20.88620174,2127.9,2127.3,7.04433]
[1625144871502,10.5335,2127.9,2127.4,0.04]
[1625144871604,6.95,2128.1,2127.4,4.0636]
[1625144871706,6.95,2128.1,2127.5,0.14]
[1625144871908,6.95,2128.1,2127.1,9.39243]
[1625144872058,6.95,2128.1,2127.0,2.29027509]
[1625144872340,6.95,2128.1,2126.8,12.9156]
[1625144872394,3.544917,2128.2,2126.8,12.9156]
[1625144872547,7.04559,2127.7,2127.0,7.04545]
[1625144872947,9.39399,2128.0,2127.1,0.08]
[1625144873451,9.39399,2128.0,2127.0,5.95187509]
[1625144873651,7.04533,2127.8,2127.1,7.04496]
[1625144874103,7.04533,2127.8,2127.0,2.29027509]
[1625144874256,7.04533,2127.8,2126.7,0.00731788]
[1625144874353,7.03426194,2127.8,2126.7,0.00731788]
[1625144874453,11.23486194,2127.8,2126.7,0.00731788]
[1625144875194,3.52346,2127.6,2126.7,0.00731788]